bitfinex-derivatives/quotes_BTCF0:USTF0_20250514
["timestamp","ask_amount","ask_price","bid_price","bid_amount"]
[1747237485870,0.31905571,103480.0,103470.0,1.1520614]
[1747237486073,0.31905571,103480.0,103470.0,0.94591823]
[1747237486373,0.12581071,103480.0,103470.0,0.94591823]
[1747237486975,0.31905571,103480.0,103470.0,0.94591823]
[1747237487473,0.55639888,103480.0,103470.0,0.94591823]
[1747237487672,0.55639888,103480.0,103470.0,0.58511823]
[1747237489076,0.35025571,103480.0,103470.0,0.58511823]
[1747237489275,0.15701071,103480.0,103470.0,0.58511823]
[1747237489575,0.28905571,103480.0,103470.0,1.1520614]
[1747237491363,0.09581071,103480.0,103470.0,1.1520614]
[1747237492474,0.28905571,103480.0,103470.0,0.94591823]
[1747237493076,0.31995571,103480.0,103470.0,0.94591823]
[1747237493573,0.35275571,103480.0,103470.0,0.94591823]
[1747237494272,0.15951071,103480.0,103470.0,0.94591823]
[1747237494480,0.12671071,103480.0,103470.0,0.94591823]
[1747237495678,0.31995571,103480.0,103470.0,0.94591823]
[1747237497165,0.52609888,103480.0,103470.0,0.16337453]
[1747237497370,1.28009888,103480.0,103470.0,0.00193283]
[1747237497570,1.28009888,103480.0,103460.0,0.03079]
[1747237497571,0.1932637,103470.0,103460.0,0.03079]
[1747237497774,0.8870824,103460.0,103450.0,0.34387885]
[1747237497976,1.85992557,103460.0,103450.0,0.34387885]
[1747237498171,1.85992557,103460.0,103450.0,0.63382155]
[1747237498478,1.85992557,103460.0,103450.0,0.44052055]
[1747237498675,1.85992557,103460.0,103450.0,0.29355816]
[1747237498870,1.85992557,103460.0,103450.0,0.48685916]
[1747237499070,1.86292557,103460.0,103450.0,0.48685916]
[1747237499472,1.86492557,103460.0,103450.0,0.48685916]
[1747237499980,1.86492557,103460.0,103450.0,0.19691646]
[1747237500577,1.86492557,103460.0,103450.0,0.39021746]
[1747237501477,1.86492557,103460.0,103450.0,0.42301746]
[1747237502675,1.62492557,103460.0,103450.0,0.2583676]
[1747237503071,1.85328557,103460.0,103450.0,0.2270676]
[1747237505284,1.62492557,103460.0,103450.0,0.2270676]
[1747237505587,1.42440311,103460.0,103450.0,0.55997115]
[1747237505789,1.42440311,103460.0,103450.0,0.38682798]
[1747237506383,1.53054628,103460.0,103450.0,0.38682798]
[1747237506578,1.52754628,103460.0,103450.0,0.38682798]
[1747237506779,0.92840311,103460.0,103450.0,0.59297115]
[1747237506986,0.89570311,103460.0,103450.0,0.95377115]
[1747237507199,0.92640311,103460.0,103450.0,0.95377115]
[1747237507495,0.92440311,103460.0,103450.0,0.74762798]
[1747237507783,0.92440311,103460.0,103450.0,0.38682798]
[1747237507988,1.31760311,103460.0,103450.0,0.38682798]
[1747237508391,1.52474628,103460.0,103450.0,0.38682798]
[1747237509083,1.55474628,103460.0,103450.0,0.38682798]
[1747237509998,1.34860311,103460.0,103450.0,0.38682798]
[1747237510689,0.95780311,103460.0,103450.0,0.38682798]
[1747237513094,1.16394628,103460.0,103450.0,0.38682798]
[1747237514196,0.95780311,103460.0,103450.0,0.38682798]
[1747237519398,0.89470311,103460.0,103450.0,0.74762798]
[1747237519597,0.92650311,103460.0,103450.0,0.38682798]
[1747237519993,0.95720311,103460.0,103450.0,0.38682798]
[1747237527393,1.16334628,103460.0,103450.0,0.32372798]
[1747237527594,1.19334628,103460.0,103450.0,0.32372798]
[1747237527800,1.55414628,103460.0,103450.0,0.32372798]
[1747237529101,1.78226628,103460.0,103450.0,0.0009666]
[1747237529300,2.35054628,103460.0,103450.0,0.0009666]
[1747237530801,2.35054628,103460.0,103450.0,0.1942676]
[1747237531205,1.89414628,103460.0,103450.0,0.1942676]
[1747237531394,2.35050628,103460.0,103450.0,0.1942676]
[1747237531598,1.65670628,103460.0,103450.0,0.2243676]
[1747237532510,1.65670628,103460.0,103450.0,0.1942676]
[1747237534110,1.65670628,103460.0,103450.0,0.0009666]
[1747237534599,1.65674628,103460.0,103450.0,0.1942676]
[1747237535205,1.65674628,103460.0,103450.0,0.2256676]
[1747237535606,1.10842628,103460.0,103450.0,0.2256676]
[1747237536105,1.34842628,103460.0,103450.0,0.0009666]
[1747237538712,1.12034628,103460.0,103450.0,0.0009666]
[1747237538923,1.57670628,103460.0,103450.0,0.0009666]
[1747237539115,1.57670628,103460.0,103450.0,0.1942676]
[1747237540012,1.57670628,103460.0,103450.0,0.0009666]
[1747237542202,1.57670628,103460.0,103450.0,0.1942676]
[1747237542713,1.57670628,103460.0,103450.0,0.2253676]
[1747237543216,1.57670628,103460.0,103450.0,0.0320666]
[1747237543511,1.57670628,103460.0,103450.0,0.2253676]
[1747237544408,1.57670628,103460.0,103450.0,0.0320666]
[1747237545717,0.193301,103450.0,103440.0,0.01420457]
[1747237546015,0.1933197,103440.0,103430.0,0.03323358]
[1747237546219,1.55756604,103440.0,103430.0,0.03323358]
[1747237546526,1.55756604,103440.0,103430.0,0.04777115]
[1747237546820,1.56739341,103440.0,103430.0,0.01647115]
[1747237547211,1.56739341,103440.0,103410.0,0.1480676]
[1747237547212,0.1933571,103420.0,103410.0,0.1480676]
[1747237547404,1.64906027,103420.0,103410.0,0.1791676]
[1747237547605,1.71316027,103420.0,103410.0,0.3725434]
[1747237547809,1.5070171,103420.0,103410.0,0.3725434]
[1747237548021,1.71316027,103420.0,103410.0,0.4046434]
[1747237548628,1.71616027,103420.0,103410.0,0.4046434]
[1747237549515,1.71616027,103420.0,103410.0,0.2112676]
[1747237549723,1.71816027,103420.0,103410.0,0.3725434]
[1747237550207,1.71816027,103420.0,103410.0,0.1791676]
[1747237550923,2.41196027,103420.0,103410.0,0.1791676]
[1747237551426,2.41196027,103420.0,103410.0,0.03206698]
[1747237552925,0.8921571,103420.0,103410.0,0.88908372]
[1747237553109,0.8921571,103420.0,103410.0,0.91978372]
[1747237553614,0.8921571,103420.0,103410.0,0.55898372]
[1747237554120,0.8891571,103420.0,103410.0,0.35284055]
[1747237554425,0.6968,103420.0,103410.0,1.14782372]
[1747237554923,0.8901571,103420.0,103410.0,1.14782372]
[1747237555124,0.6968,103420.0,103410.0,1.14782372]
[1747237555328,0.6948,103420.0,103410.0,1.14882372]
[1747237556228,0.6938,103420.0,103410.0,1.70166289]
[1747237556720,0.6938,103420.0,103410.0,2.99551972]
[1747237556927,0.70675291,103440.0,103430.0,0.1933384]
[1747237557315,0.70675291,103440.0,103430.0,0.2582384]
[1747237557618,0.70675291,103440.0,103430.0,0.35493617]
[1747237558526,0.71075291,103440.0,103430.0,0.35493617]
[1747237558721,0.76195291,103440.0,103430.0,0.35493617]
[1747237559025,0.99969608,103440.0,103430.0,0.35493617]
[1747237560626,0.99869608,103440.0,103430.0,0.35493617]
[1747237561323,0.99669608,103440.0,103430.0,0.35493617]
[1747237561623,0.99769608,103440.0,103430.0,0.35493617]
[1747237561924,1.21769608,103440.0,103430.0,0.2258384]
[1747237562426,0.1933384,103430.0,103420.0,0.2566571]
[1747237562629,1.20608157,103430.0,103420.0,0.2873571]
[1747237562829,1.43388157,103430.0,103420.0,0.0617]
[1747237563021,1.43388157,103430.0,103420.0,0.0307]
[1747237563624,1.43388157,103430.0,103420.0,0.0317]
[1747237564620,1.2277384,103430.0,103420.0,0.0307]
[1747237564825,1.43488157,103430.0,103420.0,0.2556571]
[1747237565423,0.6278984,103430.0,103420.0,0.2556571]
[1747237565628,0.7609384,103430.0,103420.0,0.2556571]
[1747237565832,0.9241984,103430.0,103420.0,0.35234552]
[1747237566025,0.9251984,103430.0,103420.0,0.35234552]
[1747237567830,1.13134157,103430.0,103420.0,0.35234552]
[1747237568330,1.16254157,103430.0,103420.0,0.35234552]
[1747237570922,0.9563984,103430.0,103420.0,0.35234552]
[1747237571222,1.16254157,103430.0,103420.0,0.35234552]
[1747237573335,0.93478157,103430.0,103420.0,0.35234552]
[1747237573530,0.93478157,103430.0,103420.0,0.15898842]
[1747237573833,1.10478157,103430.0,103420.0,0.0307]
[1747237576325,0.1933571,103420.0,103410.0,0.00096698]
[1747237576526,1.61950027,103420.0,103410.0,0.00096698]
[1747237576928,1.4133571,103420.0,103410.0,0.00096698]
[1747237577238,1.61950027,103420.0,103410.0,0.00096698]
[1747237577827,1.4133571,103420.0,103410.0,0.00196698]
[1747237578025,1.61950027,103420.0,103410.0,0.00196698]
[1747237578634,1.62150027,103420.0,103410.0,0.00196698]
[1747237579333,1.16610027,103420.0,103410.0,0.00196698]
[1747237579640,1.62146027,103420.0,103410.0,0.00196698]
[1747237579927,1.62146027,103420.0,103410.0,0.00096698]
[1747237580133,1.62346027,103420.0,103410.0,0.00096698]
[1747237580729,1.62908098,103420.0,103410.0,0.00096698]
[1747237581435,1.62908098,103420.0,103410.0,0.00112889]
[1747237582635,1.83522415,103420.0,103410.0,0.00112889]
[1747237582835,0.1933945,103400.0,103390.0,0.00193433]
[1747237583029,1.94645767,103400.0,103390.0,0.00193433]
[1747237583237,2.00965767,103400.0,103390.0,0.01624867]
[1747237583540,2.04205767,103400.0,103390.0,0.01624867]
[1747237583835,0.1934132,103390.0,103380.0,0.00145101]
[1747237584044,0.1934319,103380.0,103370.0,0.50042421]
[1747237584236,0.86337507,103380.0,103370.0,0.43751857]
[1747237584539,0.89377507,103380.0,103370.0,0.43751857]
[1747237585237,0.89377507,103380.0,103360.0,0.70184636]
[1747237585238,0.1934506,103370.0,103360.0,0.19594986]
[1747237585440,0.8471506,103370.0,103360.0,0.26024986]
[1747237585640,1.05329377,103370.0,103360.0,0.26024986]
[1747237586237,1.05329377,103370.0,103360.0,0.45371926]
[1747237586741,0.8471506,103370.0,103360.0,0.45471926]
[1747237586941,1.05329377,103370.0,103360.0,0.45471926]
[1747237587240,0.8148506,103370.0,103360.0,0.5514638]
[1747237587449,0.1934506,103370.0,103360.0,0.35551394]
[1747237587742,1.2973968,103380.0,103370.0,0.1934506]
[1747237587946,1.2973968,103380.0,103370.0,0.85179377]
[1747237587947,0.6948,103380.0,103370.0,0.85179377]
[1747237588142,0.8882319,103380.0,103370.0,0.6456506]
[1747237588448,0.8882319,103380.0,103370.0,0.94853831]
[1747237588747,0.8872319,103380.0,103370.0,0.38159514]
[1747237588950,0.6938,103380.0,103370.0,0.58773831]
[1747237589243,0.8872319,103380.0,103370.0,0.58773831]
[1747237589453,1.12577507,103380.0,103370.0,0.38159514]
[1747237589840,1.12677507,103380.0,103370.0,0.38159514]
[1747237590035,1.18677507,103380.0,103370.0,0.38159514]
[1747237590444,1.44457507,103380.0,103370.0,0.2858506]
[1747237590945,1.44457507,103380.0,103370.0,0.2848506]
[1747237591151,1.96171824,103380.0,103370.0,0.061]
[1747237591465,1.78647507,103380.0,103370.0,0.2544506]
[1747237592154,1.5803319,103380.0,103370.0,0.2544506]
[1747237592447,1.55647507,103380.0,103370.0,0.2544506]
[1747237592643,1.91727507,103380.0,103370.0,0.2544506]
[1747237594848,1.7111319,103380.0,103370.0,0.2544506]
[1747237595055,1.91727507,103380.0,103370.0,0.2544506]
[1747237595547,1.7111319,103380.0,103370.0,0.2544506]
[1747237595753,1.91727507,103380.0,103370.0,0.2544506]
[1747237595953,1.92289578,103380.0,103370.0,0.2544506]
[1747237596153,1.92289578,103380.0,103370.0,0.26892223]
[1747237597450,1.92289578,103380.0,103370.0,0.07547163]
[1747237597655,2.12903895,103380.0,103370.0,0.26892223]
[1747237598043,1.92289578,103380.0,103370.0,0.26892223]
[1747237598651,1.92289578,103380.0,103370.0,0.07547163]
[1747237598959,2.34903895,103380.0,103370.0,0.01447163]
[1747237601045,2.57683895,103380.0,103370.0,0.01447163]
[1747237602648,2.57679895,103380.0,103370.0,0.01447163]
[1747237602948,2.12143895,103380.0,103370.0,0.07997163]
[1747237603252,2.57647895,103380.0,103370.0,0.01447163]
[1747237603654,1.88267895,103380.0,103370.0,0.01447163]
[1747237611959,1.88267895,103380.0,103370.0,3e-08]
[1747237612260,0.1934694,103360.0,103350.0,0.09423508]
[1747237612463,1.63869257,103360.0,103350.0,0.06313508]
[1747237612760,1.95825257,103360.0,103350.0,0.06313508]
[1747237613663,1.95825257,103360.0,103350.0,0.06713508]
[1747237614565,1.95925257,103360.0,103350.0,0.06513508]
[1747237614863,1.95925257,103360.0,103350.0,0.25862318]
[1747237615062,1.2360694,103360.0,103350.0,0.25862318]
[1747237615370,0.8752694,103360.0,103350.0,0.35537708]
[1747237615551,1.30889257,103360.0,103350.0,0.35537708]
[1747237616064,1.30889257,103360.0,103350.0,0.35337708]
[1747237616267,1.30989257,103360.0,103350.0,0.36790502]
[1747237616459,1.31089257,103360.0,103350.0,0.36790502]
[1747237617371,1.30989257,103360.0,103350.0,0.35337708]
[1747237617664,1.90753574,103360.0,103350.0,0.06313508]
[1747237617855,1.73439257,103360.0,103350.0,0.00193508]
[1747237619461,1.73439257,103360.0,103350.0,0.03313508]
[1747237619856,1.73439257,103360.0,103350.0,0.06553508]
[1747237621252,1.74408709,103360.0,103350.0,0.06553508]
[1747237621865,1.53794392,103360.0,103350.0,0.06553508]
[1747237622165,1.74408709,103360.0,103350.0,0.06553508]
[1747237624559,1.74408709,103360.0,103350.0,0.08039274]
[1747237624758,1.74408709,103360.0,103350.0,0.01679274]
[1747237625462,1.51660709,103360.0,103350.0,0.08029274]
[1747237625658,1.97160709,103360.0,103350.0,0.04749274]
[1747237625858,2.17775026,103360.0,103350.0,0.01679274]
[1747237626373,2.18337097,103360.0,103350.0,0.01679274]
[1747237626669,1.31608463,103360.0,103350.0,0.01679274]
[1747237626869,1.9772278,103360.0,103350.0,0.07979274]
[1747237627065,1.5222278,103360.0,103350.0,0.27328084]
[1747237627273,1.9772278,103360.0,103350.0,0.07979274]
[1747237627572,1.9772278,103360.0,103350.0,0.27328084]
[1747237627756,1.9772278,103360.0,103350.0,0.07979274]
[1747237630462,1.9772278,103360.0,103350.0,0.27328084]
[1747237630661,0.88189011,103360.0,103350.0,0.27328084]
[1747237630964,1.28539328,103360.0,103350.0,0.27328084]
[1747237631264,1.31629328,103360.0,103350.0,0.27328084]
[1747237631567,0.00762071,103360.0,103350.0,0.93697791]
[1747237631866,0.00762071,103360.0,103350.0,1.28372991]
[1747237632072,0.9839659,103380.0,103370.0,0.1934506]
[1747237632373,1.3447659,103380.0,103370.0,0.20830826]
[1747237632568,1.3547659,103380.0,103370.0,0.27090826]
[1747237632880,1.59140907,103380.0,103370.0,0.36766216]
[1747237633266,2.14755224,103380.0,103370.0,0.17421156]
[1747237633474,2.14755224,103380.0,103370.0,0.07745766]
[1747237633769,2.00630907,103380.0,103370.0,0.07745766]
[1747237633973,2.00830907,103380.0,103370.0,0.07745766]
[1747237635063,2.00830907,103380.0,103370.0,0.10875766]
[1747237635963,2.21445224,103380.0,103370.0,0.10875766]
[1747237636561,2.21445224,103380.0,103370.0,0.04645766]
[1747237636765,1.52065224,103380.0,103370.0,0.01485766]
[1747237636966,1.74797224,103380.0,103370.0,0.01485766]
[1747237637563,1.74797224,103380.0,103370.0,0.07865766]
[1747237637771,1.52065224,103380.0,103370.0,0.07865766]
[1747237637967,1.74793224,103380.0,103370.0,0.07865766]
[1747237638169,1.54178907,103380.0,103370.0,0.07865766]
[1747237639471,1.3356459,103380.0,103370.0,0.07865766]
[1747237639674,1.54740978,103380.0,103370.0,0.07865766]
[1747237639973,1.14012978,103380.0,103370.0,0.27210826]
[1747237640174,1.36740978,103380.0,103370.0,0.27210826]
[1747237640576,1.09636661,103380.0,103370.0,0.27210826]
[1747237641075,0.86908661,103380.0,103370.0,0.27210826]
[1747237641281,0.83858661,103380.0,103370.0,0.47825143]
[1747237641476,0.47778661,103380.0,103370.0,0.57498661]
[1747237641671,0.47778661,103380.0,103370.0,0.36884344]
[1747237642179,0.83858661,103380.0,103370.0,0.36884344]
[1747237642373,0.87048661,103380.0,103370.0,0.36884344]
[1747237643179,1.07662978,103380.0,103370.0,0.36884344]
[1747237643876,1.10722978,103380.0,103370.0,0.36884344]
[1747237644076,1.28722978,103380.0,103370.0,0.36884344]
[1747237644282,1.04722978,103380.0,103370.0,0.36884344]
[1747237644980,1.04722978,103380.0,103370.0,0.07865766]
[1747237645187,1.24722978,103380.0,103370.0,0.07865766]
[1747237645683,1.24722978,103380.0,103370.0,0.27210826]
[1747237645883,1.01048661,103380.0,103370.0,0.36884344]
[1747237646184,0.65858661,103380.0,103370.0,0.57498661]
[1747237646778,0.65858661,103380.0,103370.0,0.37875017]
[1747237646982,0.92672978,103380.0,103370.0,0.36884344]
[1747237647177,1.12752978,103380.0,103370.0,0.36884344]
[1747237648069,0.89058661,103380.0,103370.0,0.36884344]
[1747237648276,0.61022601,103380.0,103370.0,0.36884344]
[1747237649491,0.64152601,103380.0,103370.0,0.36884344]
[1747237654686,0.28072601,103380.0,103370.0,0.57498661]
[1747237654886,0.20105261,103380.0,103370.0,0.92092895]
[1747237656084,0.19905261,103380.0,103370.0,0.92092895]
[1747237656285,0.19905261,103380.0,103370.0,0.92292895]
[1747237657483,0.28095261,103380.0,103370.0,0.35598578]
[1747237657875,0.67345261,103380.0,103370.0,0.58326578]
[1747237658082,0.87959578,103380.0,103370.0,0.16253518]
[1747237658285,0.91249578,103380.0,103370.0,0.35598578]
[1747237658594,0.91249578,103380.0,103370.0,0.37019588]
[1747237662890,0.70635261,103380.0,103370.0,0.37019588]
[1747237663091,0.91249578,103380.0,103370.0,0.37019588]
[1747237665590,1.66563895,103380.0,103370.0,0.0162101]
[1747237665801,2.35943895,103380.0,103370.0,0.0162101]
[1747237666617,2.35943895,103380.0,103370.0,0.01667433]
[1747237666903,1.92629578,103380.0,103370.0,0.01667433]
[1747237667104,1.92629578,103380.0,103370.0,0.21012493]
[1747237667105,1.58715261,103380.0,103370.0,0.21012493]
[1747237667309,1.36015261,103380.0,103370.0,0.27592493]
[1747237667608,1.79329578,103380.0,103370.0,0.08147433]
[1747237667809,1.79429578,103380.0,103370.0,0.27492493]
[1747237668009,1.79429578,103380.0,103370.0,0.08147433]
[1747237668813,1.79529578,103380.0,103370.0,0.08047433]
[1747237669001,1.79529578,103380.0,103370.0,0.27392493]
[1747237669310,1.79429578,103380.0,103370.0,0.27392493]
[1747237669499,1.79629578,103380.0,103370.0,0.08047433]
[1747237670611,1.97629578,103380.0,103370.0,0.08047433]
[1747237671710,1.97629578,103380.0,103370.0,0.01467433]
[1747237680818,1.97617578,103380.0,103370.0,0.01467433]
[1747237681315,2.18231895,103380.0,103370.0,0.01467433]
[1747237681907,2.18231895,103380.0,103370.0,3e-08]
[1747237682820,2.52905495,103380.0,103370.0,3e-08]
[1747237683013,0.1934694,103360.0,103350.0,0.00193508]
[1747237683219,1.68805257,103360.0,103350.0,0.00193508]
[1747237683421,1.78285257,103360.0,103350.0,0.03453508]
[1747237683615,1.5767094,103360.0,103350.0,0.03453508]
[1747237683818,1.5767094,103360.0,103350.0,0.25852318]
[1747237683819,1.55601257,103360.0,103350.0,0.25852318]
[1747237684023,1.57285257,103360.0,103350.0,0.25852318]
[1747237684318,0.1935068,103340.0,103330.0,0.21161039]
[1747237684620,0.82044997,103340.0,103330.0,0.40436429]
[1747237684923,1.14178997,103340.0,103330.0,0.40436429]
[1747237685118,1.14178997,103340.0,103330.0,0.29291759]
[1747237685311,1.34178997,103340.0,103330.0,0.29291759]
[1747237685511,1.35167544,103340.0,103330.0,0.29291759]
[1747237686016,1.35167544,103340.0,103330.0,0.29691759]
[1747237686316,1.51367544,103340.0,103330.0,0.29691759]
[1747237686516,1.51367544,103340.0,103330.0,0.30091759]
[1747237686820,1.51367544,103340.0,103330.0,0.10096773]
[1747237687011,1.51467544,103340.0,103330.0,0.03756773]
[1747237687320,2.10451544,103340.0,103330.0,0.00096773]
[1747237687711,2.79831544,103340.0,103330.0,0.00096773]
[1747237688113,2.79831544,103340.0,103320.0,0.06345177]
[1747237688114,0.1935255,103330.0,103320.0,0.062]
[1747237688412,1.19326867,103330.0,103320.0,0.0316]
[1747237688617,0.1935443,103320.0,103310.0,0.06683583]
[1747237688815,1.30202747,103320.0,103310.0,0.09843583]
[1747237689020,1.30202747,103320.0,103310.0,0.19520846]
[1747237689611,1.30202747,103320.0,103310.0,0.38877146]
[1747237690126,0.2438443,103320.0,103310.0,0.38977146]
[1747237691119,0.6046443,103320.0,103310.0,0.38977146]
[1747237691426,0.6046443,103320.0,103310.0,0.39077146]
[1747237691725,0.6046443,103320.0,103310.0,0.38977146]
[1747237692022,0.6066443,103320.0,103310.0,0.38877146]
[1747237692233,0.6066443,103320.0,103310.0,0.40338861]
[1747237692522,0.81278747,103320.0,103310.0,0.40338861]
[1747237692722,0.84418747,103320.0,103310.0,0.40338861]
[1747237692922,1.03418747,103320.0,103310.0,0.20982561]
[1747237693122,1.06648747,103320.0,103310.0,0.40338861]
[1747237693317,0.8603443,103320.0,103310.0,0.40338861]
[1747237693527,1.06648747,103320.0,103310.0,0.40338861]
[1747237693728,0.8603443,103320.0,103310.0,0.40338861]
[1747237693927,1.06648747,103320.0,103310.0,0.40338861]
[1747237694129,1.06648747,103320.0,103310.0,0.41851759]
[1747237694519,0.2258443,103320.0,103310.0,0.41851759]
[1747237694717,0.1955443,103320.0,103310.0,0.98546076]
[1747237694914,1.1533432,103360.0,103320.0,0.4838607]
[1747237695117,1.0260291,103360.0,103350.0,0.1934881]
[1747237695319,1.0674005,103360.0,103350.0,0.1934881]
[1747237695525,1.0674005,103360.0,103350.0,0.38425605]
[1747237695718,1.27354367,103360.0,103350.0,0.39938503]
[1747237695915,1.64434367,103360.0,103350.0,0.39938503]
[1747237696118,1.64534367,103360.0,103350.0,0.30261708]
[1747237696331,1.67674367,103360.0,103350.0,0.10912898]
[1747237696531,1.67774367,103360.0,103350.0,0.07912898]
[1747237696829,1.88774367,103360.0,103350.0,0.07912898]
[1747237697029,1.88874367,103360.0,103350.0,0.07912898]
[1747237697230,2.05074367,103360.0,103350.0,0.01512898]
[1747237697426,2.25688684,103360.0,103350.0,0.01512898]
[1747237697627,2.25588684,103360.0,103350.0,0.01512898]
[1747237698138,0.1935068,103340.0,103330.0,0.0972]
[1747237698325,1.01044997,103340.0,103330.0,0.0972]
[1747237698525,1.07444997,103340.0,103330.0,0.0972]
[1747237699129,1.23644997,103340.0,103330.0,0.0972]
[1747237699329,1.23644997,103340.0,103330.0,0.0646]
[1747237699730,1.93024997,103340.0,103330.0,0.0646]
[1747237700236,1.76824997,103340.0,103330.0,0.0646]
[1747237701733,2.12904997,103340.0,103330.0,0.0646]
[1747237702030,2.13204997,103340.0,103330.0,0.0646]
[1747237704129,2.29404997,103340.0,103330.0,0.0646]
[1747237704428,0.1935443,103320.0,103310.0,0.51789108]
[1747237704731,0.47968747,103320.0,103310.0,0.64606371]
[1747237705127,0.84048747,103320.0,103310.0,0.40412561]
[1747237705327,0.84048747,103320.0,103310.0,0.17732561]
[1747237705536,0.87118747,103320.0,103310.0,0.37088861]
[1747237705830,0.90368747,103320.0,103310.0,0.40288861]
[1747237706831,0.43218747,103320.0,103310.0,0.76368861]
[1747237707026,0.1935443,103320.0,103310.0,0.76368861]
[1747237708433,0.3228028,103330.0,103320.0,0.1935443]
[1747237708734,0.2419173,103330.0,103320.0,0.82408747]
[1747237708939,0.44806047,103330.0,103320.0,0.2571443]
[1747237709136,0.48026047,103330.0,103320.0,0.35393566]
[1747237709439,0.84106047,103330.0,103320.0,0.35393566]
[1747237709740,0.84106047,103330.0,103320.0,0.35593566]
[1747237710440,0.87106047,103330.0,103320.0,0.2591443]
[1747237710639,0.87106047,103330.0,103320.0,0.2739904]
[1747237711338,0.93546047,103330.0,103320.0,0.2739904]
[1747237711536,0.3041173,103330.0,103320.0,0.37077239]
[1747237711739,0.2719173,103330.0,103320.0,0.37077239]
[1747237711934,0.44806047,103330.0,103320.0,0.37077239]
[1747237712141,0.2419173,103330.0,103320.0,0.73157239]
[1747237713841,0.9204186,103340.0,103330.0,0.1935255]
[1747237714143,0.8873068,103340.0,103330.0,0.8758255]
[1747237714540,1.09344997,103340.0,103330.0,0.98744423]
[1747237714740,0.39964997,103340.0,103330.0,0.98744423]
[1747237715244,0.1935068,103340.0,103330.0,0.98744423]
[1747237717839,0.39964997,103340.0,103330.0,0.98744423]
[1747237718041,0.42994997,103340.0,103330.0,0.98744423]
[1747237719338,0.48994997,103340.0,103330.0,0.76064423]
[1747237719747,0.2838068,103340.0,103330.0,0.39984423]
[1747237720047,0.48994997,103340.0,103330.0,0.39984423]
[1747237720450,0.52184997,103340.0,103330.0,0.39984423]
[1747237722649,0.2238068,103340.0,103330.0,0.39984423]
[1747237722852,0.2238068,103340.0,103330.0,0.76064423]
[1747237723041,0.1935068,103340.0,103330.0,0.76064423]
[1747237724654,0.2267068,103340.0,103330.0,0.76064423]
[1747237724854,0.43284997,103340.0,103330.0,0.76164423]
[1747237725051,0.43284997,103340.0,103330.0,0.76264423]
[1747237726451,0.2267068,103340.0,103330.0,0.76264423]
[1747237727863,0.1935068,103340.0,103330.0,0.76264423]
[1747237728362,0.2264068,103340.0,103330.0,0.76264423]
[1747237728655,0.43254997,103340.0,103330.0,0.76264423]
[1747237728855,0.43254997,103340.0,103330.0,0.98916423]
[1747237729055,0.46324997,103340.0,103330.0,0.98916423]
[1747237729561,0.49324997,103340.0,103330.0,0.98916423]
[1747237729861,0.49324997,103340.0,103330.0,0.62836423]
[1747237730050,0.49887068,103340.0,103330.0,0.62836423]
[1747237731364,1.05367068,103340.0,103330.0,0.17821873]
[1747237731560,1.25487068,103340.0,103330.0,0.37174423]
[1747237732261,1.09287068,103340.0,103330.0,0.37174423]
[1747237733067,1.32287068,103340.0,103330.0,0.0168461]
[1747237733272,1.48487068,103340.0,103330.0,0.2103716]
[1747237734271,1.27872751,103340.0,103330.0,0.2103716]
[1747237734470,1.48487068,103340.0,103330.0,0.2103716]
[1747237734666,1.48487068,103340.0,103330.0,0.2426716]
[1747237735170,1.27872751,103340.0,103330.0,0.2426716]
[1747237735670,0.65792751,103340.0,103330.0,0.2738716]
[1747237735861,0.68792751,103340.0,103330.0,0.37064423]
[1747237736065,0.59522751,103340.0,103330.0,0.9375874]
[1747237736262,0.43322751,103340.0,103330.0,0.73144423]
[1747237738876,0.20682071,103340.0,103330.0,0.9375874]
[1747237739265,0.20682071,103340.0,103330.0,1.0995874]
[1747237739780,0.20682071,103340.0,103330.0,2.5995874]
[1747237740075,0.20682071,103340.0,103330.0,2.4375874]
[1747237743074,0.18077205,103340.0,103330.0,2.7843594]
[1747237743271,0.18639276,103340.0,103330.0,2.9463594]
[1747237743875,0.17913462,103340.0,103330.0,2.9463594]
[1747237744179,0.17913462,103340.0,103330.0,3.4463594]
[1747237744368,0.17913462,103340.0,103330.0,3.8991994]
[1747237744672,0.17913462,103340.0,103330.0,1.9463594]
[1747237744873,0.07753182,103340.0,103330.0,2.3991994]
[1747237745075,2e-08,103340.0,103330.0,2.58030316]
[1747237745377,0.49627787,103390.0,103380.0,0.1934319]
[1747237745582,0.95807787,103390.0,103380.0,0.1934319]
[1747237745979,0.95807787,103390.0,103380.0,0.29020453]
[1747237746481,0.6819347,103390.0,103380.0,0.29020453]
[1747237746782,0.95117787,103390.0,103380.0,0.35510453]
[1747237747080,0.96117787,103390.0,103380.0,0.35510453]
[1747237747468,0.96717787,103390.0,103380.0,0.35510453]
[1747237748476,0.96117787,103390.0,103380.0,0.35510453]
[1747237748680,0.96317787,103390.0,103380.0,0.35510453]
[1747237750578,0.95317787,103390.0,103380.0,0.09677263]
[1747237750777,0.1934319,103380.0,103370.0,0.56209615]
[1747237751078,0.1934319,103380.0,103370.0,0.46514198]
[1747237751079,0.82497507,103380.0,103370.0,0.46514198]
[1747237752981,0.1450967,103370.0,103350.0,0.50929897]
[1747237753180,0.46551257,103360.0,103350.0,0.76366947]
[1747237753385,0.46551257,103360.0,103350.0,2.26366947]
[1747237753679,0.47551257,103360.0,103350.0,2.31205227]
[1747237753885,0.47551257,103360.0,103350.0,0.82617756]
[1747237754383,0.47551257,103360.0,103350.0,0.83117756]
[1747237755273,0.47551257,103360.0,103350.0,0.83017756]
[1747237755474,0.47551257,103360.0,103350.0,0.82717756]
[1747237755675,0.47551257,103360.0,103350.0,0.82817756]
[1747237757880,0.2693694,103360.0,103350.0,0.82817756]
[1747237759381,0.00562071,103360.0,103350.0,1.03432073]
[1747237759581,0.00562071,103360.0,103350.0,1.02019544]
[1747237760077,0.03622071,103360.0,103350.0,1.02019544]
[1747237760273,0.22969011,103360.0,103350.0,0.81405227]
[1747237760686,0.43583328,103360.0,103350.0,0.81405227]
[1747237760881,0.46693328,103360.0,103350.0,0.81405227]
[1747237761088,0.46693328,103360.0,103350.0,0.82818481]
[1747237761282,0.49693328,103360.0,103350.0,0.82818481]
[1747237762590,0.49693328,103360.0,103350.0,0.82675123]
[1747237763180,0.29079011,103360.0,103350.0,0.82675123]
[1747237763587,0.29079011,103360.0,103350.0,0.76585123]
[1747237763785,0.49693328,103360.0,103350.0,0.71748023]
[1747237764088,0.1935068,103340.0,103330.0,0.651084]
[1747237764390,0.39964997,103340.0,103330.0,0.714284]
[1747237764594,0.46374997,103340.0,103330.0,0.714284]
[1747237765093,0.46374997,103340.0,103330.0,0.81105663]
[1747237765094,0.0329,103340.0,103330.0,0.81105663]
[1747237765287,0.2264068,103340.0,103330.0,0.81105663]
[1747237766193,0.46374997,103340.0,103330.0,0.81105663]
[1747237766780,0.46474997,103340.0,103330.0,0.81105663]
[1747237766981,0.46574997,103340.0,103330.0,0.81105663]
[1747237767381,0.2586068,103340.0,103330.0,0.81205663]
[1747237767680,0.2576068,103340.0,103330.0,0.81205663]
[1747237767884,0.2576068,103340.0,103330.0,0.74885663]
[1747237768079,0.2576068,103340.0,103330.0,0.80935663]
[1747237768881,0.46374997,103340.0,103330.0,0.71259493]
[1747237769083,0.47374997,103340.0,103330.0,0.32159493]